Cogmind - Beta 14 @@@ ROGUE MODE // 2024.09.14 @ 16:37:15 Player: star Result: Destroyed by 3N-VZJ(R) with Subdweller Laser Performance ------------- Evolutions (0) 0 Regions Visited (2) 400 Robots Destroyed (23) 115 Value Destroyed (719) 719 Prototype IDs (1) 20 Alien Tech Used (0) 0 Bonus (0) 0 TOTAL SCORE: 1254 Bonus ------- None Cogmind --------- Core Integrity 0/250 Matter 300/300 Energy 199/200 System Corruption 0% Temperature Cool (6) Movement Rolling (105) Ox1 Location -10/Subcaves Parts ------- > --- POWER (1) -------- Subdweller Power Source > --- PROPULSION (2) --- Armored Wheel > --- UTILITY (2) ------ Subdweller Optics > --- WEAPON (2) ------- Riot Gun Advanced Beam Cannon > --- INVENTORY (5) ---- Meta Core Armored Wheel Subdweller Optics Rocket Launcher Peak State ------------ > --- POWER ------------ Light Nuclear Core > --- PROPULSION ------- Armored Wheel Subdweller Monowheel > --- UTILITY ---------- Heat Sink Subdweller Optics > --- WEAPON ----------- Advanced Beam Cannon Heavy Battle Rifle > --- INVENTORY -------- Meta Core Armored Wheel Heat Sink Advanced Beam Cannon Rocket Launcher [Rating: 19] Favorites ----------- Power Light Nuclear Core Engine Light Ion Engine Power Core Light Nuclear Core Propulsion Armored Wheel Leg Aluminum Leg Wheel Armored Wheel Utility Small Storage Unit Device Heat Sink Storage Small Storage Unit Weapon Advanced Beam Cannon Energy Gun Medium Laser Energy Cannon Advanced Beam Cannon Ballistic Gun Assault Rifle Ballistic Cannon Light Cannon Launcher Rocket Launcher Special Weapon Flamer Build | -11 -10 -10 ------- Run | Yrd Mat Sub Slots Evolved . | . . . Power . | . . . Propulsion . | . . . Utility . | . . . Weapon . | . . . Parts Attached 33 | 7 10 16 Power 3 | 1 1 1 Engine 2 | 1 . 1 Core 1 | . 1 . Reactor . | . . . Propulsion 7 | 2 2 3 Treads . | . . . Leg 2 | 2 . . Wheel 5 | . 2 3 Hover . | . . . Flight . | . . . Utility 7 | 1 2 4 Device 6 | . 2 4 Storage 1 | 1 . . Processor . | . . . Hackware . | . . . Protection . | . . . Artifact . | . . . Weapon 16 | 3 5 8 Energy Gun 3 | 2 . 1 Energy Cannon 5 | . 2 3 Ballistic Gun 5 | 1 1 3 Ballistic Cannon 1 | . 1 . Launcher 1 | . 1 . Special Weapon 1 | . . 1 Impact Weapon . | . . . Slashing Weapon . | . . . Piercing Weapon . | . . . Special Melee Weapon . | . . . Unidentified Prototypes 1 | . 1 . Parts Lost 9 | . 2 7 Power 2 | . 1 1 Propulsion 1 | . . 1 Utility 3 | . . 3 Weapon 3 | . 1 2 Highest Loss Streak 5 | . 2 5 To Critical Strikes 1 | . . 1 Average Slot Usage (%) 92 | . 94 88 Engine 4 | . 5 2 Core 8 | . 7 10 Leg 3 | . 5 . Wheel 23 | . 22 24 Device 14 | . 10 21 Storage 9 | . 14 1 Energy Gun 6 | . 8 2 Energy Cannon 8 | . 3 18 Ballistic Gun 7 | . 8 6 Ballistic Cannon 5 | . 8 . Peak Build Rating 19 | 6 12 19 Average Rating 12 | 3 10 16 On Entrance 6 | . 6 12 Naked Turns . | . . . Heaviest Build 19 | 12 16 19 Greatest Support 32 | 20 24 32 Greatest Overweight (x) 1 | . 1 1 Average Overweight (x) . | . . . Largest Inventory Capacity 8 | 8 8 8 Average Capacity 7 | 6 8 5 Most Carried 8 | 1 8 8 Average Carried 6 | . 7 4 Final Capacity 8 | 8 8 5 Final Carried 8 | 1 8 4 Class Distribution -------------------- 88% | Mutant 11% | Scavenger-Mutant Dominant Class ---------------- Mutant | -10/Materials Mutant | -10/Subcaves Resources | -11 -10 -10 ----------- Run | Yrd Mat Sub Matter Collected 658 | 267 164 227 Remotely . | . . . Salvage Created 805 | . 462 343 Parts 42 | . 24 18 Haulers Intercepted 1 | . 1 . Recyclers Shooed . | . . . Parts Field Recycled . | . . . Retrieved Matter . | . . . Parts Self-Destructed 3 | . . 3 Prevented . | . . . Kills | -11 -10 -10 ------- Run | Yrd Mat Sub Combat Hostiles Destroyed 18 | . 9 9 Guns 4 | . 2 2 Cannons 12 | . 5 7 AOE 1 | . 1 . Classes Destroyed 7 | . 6 1 Worker 1 | . 1 . Builder 1 | . 1 . Hauler 1 | . 1 . Recycler 1 | . 1 . Operator 1 | . 1 . Grunt 9 | . 9 . Subdweller 9 | . . 9 Best Kill Streak 5 | . 5 2 Combat Bots Only 3 | . 3 2 Max Kills in Single Turn 1 | . 1 1 Gunslinging . | . . . Exploded 1 | . 1 . Melee . | . . . Uniques/NPCs Destroyed . | . . . Combat | -11 -10 -10 -------- Run | Yrd Mat Sub Hostile Shots Fired 99 | . 46 53 Missed 24 | . 11 13 Damage Taken 1446 | . 496 950 Core 265 | . 96 169 Absorbed by Shields . | . . . Core Remaining (%) 100 | 100 . . Volleys Fired 85 | . 38 47 Largest 2 | . 2 2 Hottest 136 | . 118 136 Shots Fired 161 | . 76 85 Gun 63 | . 40 23 Cannon 96 | . 34 62 Launcher 2 | . 2 . Special . | . . . Kinetic 49 | . 28 21 Thermal 108 | . 46 62 Explosive 2 | . 2 . Electromagnetic 2 | . . 2 Robot Hit Streak 16 | . 9 16 Robot Miss Streak 3 | . 3 3 Penetration Max . | . . . Secondary Targets . | . . . Shots Hit Robots 109 | . 45 64 Core Hits 39 | . 21 18 Critical Kills . | . . . Critical Parts Destroyed . | . . . Critical Strikes . | . . . Melee Attacks . | . . . Impact . | . . . Slashing . | . . . Piercing . | . . . Sneak Attacks . | . . . Combat Hostiles . | . . . Follow-up Attacks . | . . . Damage Inflicted 2230 | . 952 1278 Guns 634 | . 297 337 Cannons 1361 | . 420 941 Explosions 228 | . 228 . Melee . | . . . Ramming 7 | . 7 . Kinetic 547 | . 229 318 Thermal 1429 | . 488 941 Explosive 228 | . 228 . Electromagnetic 19 | . . 19 Impact . | . . . Slashing . | . . . Piercing . | . . . Highest Corruption . | . . . Average Corruption . | . . . Corruption Purged . | . . . Corruption Blocked . | . . . Overload Shots . | . . . Overflow Damage 4 | . 4 . Projectiles . | . . . Explosions 4 | . 4 . Melee . | . . . Knockbacks 2 | . 2 . Impact . | . . . Kinetic 2 | . 2 . Secondary . | . . . Self-Inflicted Damage 69 | . 69 . Shots 2 | . 2 . Rammed 2 | . 2 . Targets Rammed 2 | . 2 . Kicked . | . . . Crushed . | . . . Highest Temperature 389 | . 389 9 Average Temperature 87 | . 113 4 Received Heat Transfer 375 | . 243 132 Effects 1 | . 1 . Energy Bleed 1 | . 1 . Siege Activations . | . . . Robots Corrupted . | . . . Combat Hostiles . | . . . Parts Fried . | . . . Impact Corruptions . | . . . Robots Melted 1 | . 1 . Combat Hostiles 1 | . 1 . Parts Melted 4 | . 3 1 Heat Transferred 2849 | . 1147 1702 Parts Sabotaged . | . . . Parts Stolen . | . . . Parts Stripped . | . . . Power Chain Reactions . | . . . Alert | -11 -10 -10 ------- Run | Yrd Mat Sub Peak Influence 162 | . 162 . Initial . | . . . Average 62 | . 66 . Maximum Alert Level . | . . . Low Security (%) 100 | 100 100 . Level 1 . | . . . Level 2 . | . . . Level 3 . | . . . Level 4 . | . . . Level 5 . | . . . High Security . | . . . Max Security . | . . . Squads Dispatched 2 | . 2 . Investigation . | . . . Extermination . | . . . Reinforcement 2 | . 2 . Assault . | . . . Garrison . | . . . Intercept . | . . . Searches Triggered . | . . . Construction Impeded . | . . . Haulers Reinforced . | . . . Active Scanning Responses . | . . . Cargo Convoy Interrupts . | . . . Stealth | -11 -10 -10 --------- Run | Yrd Mat Sub Distress Signals 1 | . 1 . Communications Jammed . | . . . Distress Signals . | . . . Times Spotted 29 | . 18 11 Peak Tracking Total 4 | . 4 3 Tactical Retreats 1 | . 1 . Traps | -11 -10 -10 ------- Run | Yrd Mat Sub Traps Triggered . | . . . Indirectly . | . . . Trap Hack Attempts . | . . . Triggered . | . . . Disarmed . | . . . Reprogrammed . | . . . Reused . | . . . Traps Extracted . | . . . Installed . | . . . Triggered . | . . . Machines | -11 -10 -10 ---------- Run | Yrd Mat Sub Machines Disabled 1 | . 1 . Max in Single Turn 1 | . 1 . Machines Repaired . | . . . Machines Dismantled . | . . . Machines Sabotaged . | . . . Overloaded Fab Kills . | . . . Hacking | -11 -10 -10 --------- Run | Yrd Mat Sub Machines Accessed 1 | . 1 . Terminals . | . . . Fabricators . | . . . Repair Stations 1 | . 1 . Recycling Units . | . . . Scanalyzers . | . . . Garrison Access . | . . . Total Hacks 1 | . 1 . Successful . | . . . Failed 1 | . 1 . Catastrophic . | . . . Database Lockouts . | . . . Manual . | . . . Terminals . | . . . Fabricators . | . . . Repair Stations 1 | . 1 . Recycling Units . | . . . Scanalyzers . | . . . Garrison Access . | . . . Terminal Hacks . | . . . Fabricator Hacks . | . . . Repair Station Hacks . | . . . Recycling Unit Hacks . | . . . Scanalyzer . | . . . Garrison Access Hacks . | . . . Unauthorized Hacks . | . . . Terminals . | . . . Fabricators . | . . . Repair Stations . | . . . Recycling Units . | . . . Scanalyzers . | . . . Garrison Access . | . . . Data Cores Recovered 1 | . 1 . Used . | . . . Hacking Detections 1 | . 1 . Full Trace Events . | . . . Feedback Events . | . . . Feedback Blocked . | . . . Robot Schematics Acquired . | . . . Robots Built . | . . . Authchips . | . . . Time . | . . . Total Robot Build Rating . | . . . Part Schematics Acquired . | . . . Parts Built . | . . . Authchips . | . . . Time . | . . . Total Part Build Rating . | . . . Parts Repaired . | . . . Time . | . . . Parts Recycled . | . . . Recycled Matter . | . . . Retrieved Matter . | . . . Retrieved Components . | . . . Parts Scanalyzed . | . . . Part Schematics Acquired . | . . . Parts Damaged . | . . . Bothacking | -11 -10 -10 ------------ Run | Yrd Mat Sub Used RIF Installer . | . . . Robots Hacked . | . . . Non-combat . | . . . Combat . | . . . Robot Hacks Applied . | . . . Relay Couplers Released . | . . . Fabnet Peak Effective % . | . . . Robots Rewired . | . . . Allies Hacked . | . . . Hacks Repelled . | . . . Allies | -11 -10 -10 -------- Run | Yrd Mat Sub Total Allies . | . . . Largest Group . | . . . Highest-Rated Group . | . . . Highest-Rated Ally . | . . . Total Orders . | . . . Ally Attacks . | . . . Total Damage . | . . . Kills . | . . . Allies Corrupted . | . . . Allies Melted . | . . . Intel | -11 -10 -10 ------- Run | Yrd Mat Sub Robot Analysis Total . | . . . Derelict Logs Recovered . | . . . Drone Launches . | . . . Drone Recoveries . | . . . Exploration | -11 -10 -10 ------------- Run | Yrd Mat Sub Turns Passed 1608 | 62 1012 534 Spaces Moved 746 | 44 348 354 Core 2 | 2 . . Treads . | . . . Legs 152 | 42 110 . Wheels 592 | . 238 354 Hover . | . . . Flight . | . . . Fastest Speed 50 | 50 90 90 Average Speed 100 | 116 99 98 Slowest Speed 120 | 120 120 105 Overloaded Moves . | . . . Propulsion Burnouts . | . . . Robots Hopped . | . . . Cave-ins Triggered . | . . . Exploration Rate (%) 22 | 4 45 18 Regions Visited 2 Branch Regions 1 Pre-discovered Areas . | . . . Known Exits Taken . | . . . Unknown Exits Taken 2 | 1 1 . Scrap Searched 6 | . . 6 Spaces Dug . | . . . Terrain Destroyed 15 | . 14 1 Melee . | . . . Projectile 1 | . . 1 AOE 14 | . 14 . Terrain Rammed . | . . . Walls Destroyed . | . . . Machines Disabled . | . . . Actions | -11 -10 -10 --------- Run | Yrd Mat Sub Total 1440 | 51 938 451 Wait 547 | . 522 25 Move 744 | 43 347 354 Hop . | . . . Pick Up 16 | 1 12 3 Fast Attach 13 | 6 3 4 Attach 3 | . 1 2 Detach 2 | . 1 1 Swap 17 | 1 6 10 Drop 11 | . 6 5 Fire 85 | . 38 47 Melee . | . . . Ram 2 | . 2 . Kick . | . . . Crush . | . . . Escape Stasis . | . . . Rewire . | . . . Trap . | . . . Miscellaneous . | . . . Route ------- -11/Scrapyard -10/Materials (discovered 3 exits: [*Mat] / [*Min] / [*Sub]) -10/Subcaves History --------- Turn | Location | Event 9 | -11/Scrapyard | Discovered new exit (range 16) 63 | -11/Scrapyard | Entered Materials 268 | -10/Materials | Discovered new exit (range 7) 314 | -10/Materials | Build established: Mutant 341 | -10/Materials | Discovered new exit (range 5) 1052 | -10/Materials | Discovered new exit (range 9) 1075 | -10/Materials | Entered Subcaves 1115 | -10/Subcaves | Core integrity fell below 50% 1161 | -10/Subcaves | A Subdweller sparked back to life 1205 | -10/Subcaves | Found Prototype Power Core 1237 | -10/Subcaves | Shifting Twisted Machinery released Hvy. Battle Rifle 1257 | -10/Subcaves | Shifting Twisted Machinery released Sub. Shrapnel Launcher 1482 | -10/Subcaves | Core integrity fell below 20% 1508 | -10/Subcaves | Lost 5 parts (1p1n1u2w) 1560 | -10/Subcaves | Disturbed a concealed Subdweller 1609 | -10/Subcaves | Destroyed by 3N-VZJ(R) with Subdweller Laser Last Messages --------------- 01479_ Subatomizers dissect the Sub. Power Source. 01488_ Destroyed Scrap Shield. 01490_ 71-4QK(R) destroyed. 01492_ Acquired 6 matter. 01494_ Subatomizers dissect the Sub. Monowheel. 01501_ Acquired Sub. Machine Gun. 01506_ Sub. Optics shoots sparks and powers down. 01506_ Acquired Sub. Power Source. 01507_ LZ-ZBK(O) collects matter. 01513_ LZ-ZBK(O) puts together Riot Gun. 01517_ Subatomizers dissect the Sub. Monowheel. 01517_ Destroyed Wheel. 01522_ Acquired Riot Gun. 01524_ Acquired 23 matter. 01529_ Acquired 13 matter. 01532_ Subatomizers dissect the Sub. Monowheel. 01559_ Acquired Sub. Optics. 01560_ 4H-MRC(R) angrily emerges from the Twisted Machinery. 01563_ 4H-MRC(R) destroyed. 01566_ Acquired 10 matter. Map ----- +----------------------------------------------------+ | | | | | | | | | | | | | ?????????????????????????????????????????????????? | | ?????????????????????????????????????????????????? | | ?????????????????????????????????????????????????? | | ?????????????????????????????????????????????????? | | ?????????????????????????????????????????????????? | | ?????????????????????????????????????????????????? | | ?????????????????????????????????????????????????? | | ?????????????????????????????????????????????????? | | ?????????????????????????????????????????????????? | | ?????????????????????????????????????????????????? | | ?????????????????????????????????????????????????? | | ?????????????????????????????????????????????????? | | ?????????????????###?????????????????????????????? | | ?????????????????# ?????????????????????????????? | | ????????????????### ##???????????????????????????? | | "??????????????# < <##??????????###?????????????? | | "?#########???# R ######????? ##????????????? | | "#"#"#"# ##??# # # ###?? #????????????? | | """ ] """"##?# ### #????????####? | | " """ [ ""#?## #@ #?######### # | | " "" #""& = ####### ### ### # #"# # " | | "" "" ###"! # ##?## #### "" ##"" | | "" ""?## """""#### ### "" ##"" | | "#####" *& "# ## ### ## #" # ##" | | ?### &%& ##?? ## "" # ### | | ##??#"" #""&!" ##?## "" "## | | ????##" ## """" #### ""# "# | | ?????###?#### ####### ## #?### " | | ????????????####?????##### ### #????## "" | | ?????????????????????????# ##"## #??#####"##"" | | ?????????????????????????# #"%*## #?## #" "" | | ?????????????????????????# #"&[[#% ###""" "" | | ?????????????????????????# #%"%"&%%] #" "& ] # | | ?????????????????????????# ##"" #|% & = | | ?????????????????????????# #### | ! "" | | ?????????????????????????# # ## " " "## | | ?????????????????????????###############"""""##" | | ???????????????????????????????????????######## " | | ??????????????????????????????????????????????### | | ???????????????????????????????????????????????# | | ???????????????????????????????????????????????## | | ????????????????????????????????????????????????# | | ???????????????????????????????????????????????## | | ???????????????????????????????????????????????# | +----------------------------------------------------+ Best States ------------- Heat Dissipation 35 Energy Generation 15 Energy Capacity 200 Matter Stores 300 Matter Capacity 300 Sight Range 21 Terrain Scan Density 10 Evasion (%) 55 Item Schematics ----------------- None Robot Schematics ------------------ None Fabricated ------------ Nothing Alien Tech Used ----------------- None Achievements -------------- None Challenges ------------ None Game ------ Seed TripodLegBeamcaster Manual? 0 Play Time 00:14:33 Cumulative 83.8 hours Start 2024.09.14 @ 16:26:49 End 2024.09.14 @ 16:37:15 Sessions 1 Manual Loads 0 Difficulty Rogue Special Mode None Game No. 146 Rogue 146 Adventurer 0 Explorer 0 Win Type - Total 0 Types 0/0/0/0/0/0/0/0/0 Lore% 45 Gallery% 48 Achievement% 39 Wizard Run 0 Options --------- Layout 0 ASCII 0 Keyboard 1 Movement Numpad Keybinds 0 Fullscreen 2 Font 18/SmallcapsGlow Map View 76x50 Zoom Use 0% Tactical HUD 1 Map Filters NONE Filters NONE Steam 1 RUN: 9e9b0594-633b-42f4-9823-47c3187c9bc6